fUST/lending_fUST_20251014
["ID","MTS","AMOUNT","RATE_DAILY","PERIOD"]
[391161625,1760403072835,-160.0,0.00026202,7]
[391161626,1760403072844,-162.38008899,0.00026202,5]
[391161627,1760403072853,-202.12309487,0.000263,2]
[391161628,1760403072863,-2049.25944729,0.00026356,2]
[391161629,1760403072872,-414.20156637,0.00026373,2]
[391161630,1760403072882,-784.18353649,0.00026416,2]
[391161631,1760403072891,-2000.0,0.00026416,2]
[391161632,1760403072900,-2000.0,0.00026416,2]
[391161633,1760403072909,-700.0,0.00026544,2]
[391161634,1760403072919,-266.975097,0.00026676,2]
[391161635,1760403072928,-218.0,0.00026824,7]
[391161636,1760403072936,-2500.0,0.00026964,2]
[391161637,1760403072945,-2500.0,0.00026964,2]
[391161638,1760403072955,-500.0,0.00026973,2]
[391161639,1760403072964,-440.63996422,0.00026973,2]
[391161640,1760403072974,-823.0,0.00026996,2]
[391161641,1760403072983,-9075.23473808,0.00027011,2]
[391161642,1760403072992,-864.0,0.00027049,30]
[391161643,1760403073002,-151.0,0.00027123,7]
[391161644,1760403073012,-1006.2359218,0.00027123,3]
[391161645,1760403073022,-500.526,0.00027379,2]
[391161646,1760403073032,-2202.266,0.00027379,2]
[391161647,1760403073042,-9887.15,0.00027397,4]
[391161648,1760403073051,-150.0,0.00027397,5]
[391161649,1760403073060,-3642.93,0.000274,2]
[391161650,1760403073070,-2500.0,0.00027512,5]
[391161651,1760403073079,-2500.0,0.00027512,5]
[391161652,1760403073088,-467.07836208,0.00027573,2]
[391161653,1760403073097,-700.0,0.0002764,7]
[391161654,1760403073106,-160.0,0.00027652,3]
[391161655,1760403073115,-160.0,0.00027652,5]
[391161656,1760403073124,-600.0,0.00027704,2]
[391161657,1760403073133,-784.1682488,0.00027808,30]
[391161658,1760403073142,-981.0,0.00027878,2]
[391161659,1760403073152,-631.0,0.00027878,2]
[391161660,1760403073161,-2160.0,0.00027878,2]
[391161661,1760403073171,-405.048,0.00027878,2]
[391161662,1760403073180,-411.0,0.00027878,2]
[391161663,1760403073189,-31584.59,0.000279,7]
[391161664,1760403073198,-200.1288548,0.00027945,30]
[391161665,1760403073208,-600.0,0.00027992,2]
[391161666,1760403073217,-1703.1967853,0.00028036,2]
[391161667,1760403073229,-493.51675993,0.00028173,2]
[391161668,1760403073238,-600.0,0.00028281,2]
[391161669,1760403073247,-500.0,0.00028322,5]
[391161670,1760403073256,-700.0,0.00028462,7]
[391161671,1760403073265,-600.0,0.00028569,2]
[391161672,1760403073274,-380.0345714,0.0002874,2]
[391161673,1760403073283,-9075.23473808,0.00028743,2]
[391161674,1760403073292,-9887.15,0.00028767,6]
[391161675,1760403073301,-519.95515778,0.00028773,2]
[391161676,1760403073310,-600.0,0.00028858,2]
[391161677,1760403073320,-7103.83199843,0.00029,30]
[391161678,1760403073329,-650.60029501,0.00029,2]
[391161679,1760403073338,-402.34485587,0.00029,30]
[391161680,1760403073346,-1071.17,0.00029,2]
[391161681,1760403073355,-600.0,0.00029147,2]
[391161682,1760403073364,-1071.17,0.00029174,2]
[391161683,1760403073373,-200.0,0.0002919,120]
[391161684,1760403073382,-3642.93,0.000292,2]
[391161685,1760403073391,-1071.17,0.00029348,2]
[391161686,1760403073400,-1152.0,0.00029366,2]
[391161687,1760403073409,-546.39355564,0.00029373,2]
[391161688,1760403073418,-1532.36608711,0.00029432,2]
[391161689,1760403073427,-600.0,0.00029435,2]
[391161690,1760403073436,-200.0,0.00029443,10]
[391161691,1760403073444,-109992.33253038,0.00029444,2]
[391161692,1760403073812,-24296.60357268,0.00029444,2]
[391161693,1760403073823,-32540.02403941,0.00029444,2]
[391161694,1760403074140,-566.418217,0.00021917,7]
[391161695,1760403074150,-500.0,0.00021917,2]
[391161696,1760403074159,-500.0,0.00021917,2]
[391161697,1760403074168,-411.80254965,0.00021917,7]
[391161706,1760403285385,240.277589,0.00013699,2]
[391161707,1760403285595,240.277589,0.00020187,2]
[391161708,1760403490595,314.8682092,0.00020809,2]
[391161715,1760403717626,10000.0,0.00020972,2]
[391161716,1760403801378,206.9896312,0.00020948,2]
[391161719,1760403874517,1196.37,0.00030661,120]
[391161721,1760403976019,978.32516086,0.00029,120]
[391161722,1760404108178,638.08482008,0.00028767,120]
[391161724,1760404144027,150.0,0.00020444,2]
[391161766,1760404232336,-178.83559125,0.00021418,2]
[391161768,1760404232346,-162.0,0.00021562,5]
[391161770,1760404232355,-300.0,0.00021697,2]
[391161788,1760404232365,-179.45496441,0.00021698,2]
[391161945,1760404238422,-120.54503559,0.00021698,2]
[391161946,1760404238432,-300.0,0.00021698,2]
[391161947,1760404238440,-300.0,0.00021698,2]
[391161948,1760404238449,-1200.0,0.00021698,2]
[391161949,1760404238458,-300.0,0.00021698,2]
[391161950,1760404238467,-500.0,0.00021699,2]
[391161951,1760404238476,-4188.82395263,0.00021717,2]
[391161952,1760404238484,-1200.0,0.00021725,2]
[391161953,1760404238493,-50000.0,0.00021726,2]
[391161954,1760404238502,-586.45215182,0.00021727,2]
[391161955,1760404238511,-586.45215179,0.0002175,2]
[391161956,1760404238520,-586.45215179,0.00021772,2]
[391161957,1760404238529,-586.45215179,0.00021795,2]
[391161958,1760404238537,-160.0,0.00021795,2]
[391161959,1760404238546,-796.67,0.00021805,3]
[391161960,1760404238555,-398.34,0.00021805,3]
[391161961,1760404238564,-199.17,0.00021805,3]
[391161962,1760404238572,-597.52,0.00021805,3]
[391161963,1760404238581,-500.0,0.00021813,2]
[391161964,1760404238590,-500.0,0.00021813,2]
[391161965,1760404238599,-500.0,0.00021813,2]
[391161966,1760404238608,-500.0,0.00021813,2]
[391161967,1760404238617,-500.0,0.00021813,2]
[391161968,1760404238626,-500.0,0.00021813,2]
[391161969,1760404238635,-500.0,0.00021813,2]
[391161970,1760404238644,-500.0,0.00021813,2]
[391161971,1760404238653,-500.0,0.00021813,2]
[391161972,1760404238662,-500.0,0.00021813,2]
[391161973,1760404238671,-500.0,0.00021813,2]
[391161974,1760404238680,-479.44196994,0.00021813,2]
[391161975,1760404238689,-635.26934183,0.00021813,2]
[391161976,1760404238698,-500.0,0.00021813,2]
[391161977,1760404238706,-500.0,0.00021813,2]
[391161978,1760404238715,-500.0,0.00021813,2]
[391161979,1760404238724,-500.0,0.00021813,2]
[391161980,1760404238733,-500.0,0.00021813,2]
[391161981,1760404238742,-500.0,0.00021813,2]
[391161982,1760404238750,-500.0,0.00021813,2]
[391161983,1760404238760,-500.0,0.00021813,2]
[391161984,1760404238768,-500.0,0.00021813,2]
[391161985,1760404238777,-500.0,0.00021813,2]
[391161986,1760404238786,-500.0,0.00021813,2]
[391161987,1760404238795,-500.0,0.00021813,2]
[391161988,1760404238804,-500.0,0.00021813,2]
[391161989,1760404238813,-500.0,0.00021813,2]
[391161990,1760404238822,-500.0,0.00021813,2]
[391161991,1760404238831,-500.0,0.00021813,2]
[391161992,1760404238840,-500.0,0.00021813,2]
[391161993,1760404238848,-500.0,0.00021813,2]
[391161994,1760404238857,-500.0,0.00021813,2]
[391161995,1760404238866,-500.0,0.00021813,2]
[391161996,1760404238876,-500.0,0.00021813,2]
[391161997,1760404238885,-500.0,0.00021813,2]
[391161998,1760404238894,-418.78621624,0.00021813,2]
[391161999,1760404238903,-500.0,0.00021813,2]
[391162000,1760404238913,-500.0,0.00021813,2]
[391162002,1760404238923,-500.0,0.00021813,2]
[391162004,1760404238934,-569.83010511,0.00021813,2]
[391162006,1760404238944,-500.0,0.00021813,2]
[391162007,1760404238953,-500.0,0.00021813,2]
[391162009,1760404238963,-500.0,0.00021813,2]
[391162011,1760404238973,-500.0,0.00021813,2]
[391162013,1760404238982,-500.0,0.00021813,2]
[391162015,1760404238992,-500.0,0.00021813,2]
[391162017,1760404239003,-500.0,0.00021813,2]
[391162019,1760404239013,-500.0,0.00021813,2]
[391162021,1760404239023,-500.0,0.00021813,2]
[391162022,1760404239033,-500.0,0.00021813,2]
[391162024,1760404239043,-500.0,0.00021813,2]
[391162026,1760404239052,-500.0,0.00021813,2]
[391162028,1760404239062,-500.0,0.00021813,2]
[391162029,1760404239071,-500.0,0.00021813,2]
[391162030,1760404239082,-500.0,0.00021813,2]
[391162031,1760404239091,-500.0,0.00021813,2]
[391162032,1760404239100,-500.0,0.00021813,2]
[391162033,1760404239109,-500.0,0.00021813,2]
[391162034,1760404239119,-500.0,0.00021813,2]
[391162035,1760404239128,-500.0,0.00021813,2]
[391162036,1760404239137,-500.0,0.00021813,2]
[391162037,1760404239146,-500.0,0.00021813,2]
[391162038,1760404239155,-500.0,0.00021813,2]
[391162039,1760404239165,-500.0,0.00021813,2]
[391162040,1760404239174,-500.0,0.00021813,2]
[391162041,1760404239183,-195.5,0.00021813,2]
[391162042,1760404239193,-500.0,0.00021813,2]
[391162043,1760404239202,-484.36978768,0.00021813,2]
[391162044,1760404239212,-500.0,0.00021813,2]
[391162045,1760404239221,-500.0,0.00021813,2]
[391162046,1760404239230,-500.0,0.00021813,2]
[391162047,1760404239243,-500.0,0.00021813,2]
[391162048,1760404239255,-500.0,0.00021813,2]
[391162049,1760404239267,-500.0,0.00021813,2]
[391162050,1760404239279,-500.0,0.00021813,2]
[391162051,1760404239292,-500.0,0.00021813,2]
[391162052,1760404239303,-500.0,0.00021813,2]
[391162053,1760404239314,-500.0,0.00021813,2]
[391162054,1760404239324,-500.0,0.00021813,2]
[391162055,1760404239336,-500.0,0.00021813,2]
[391162056,1760404239349,-500.0,0.00021813,2]
[391162057,1760404239362,-500.0,0.00021813,2]
[391162058,1760404239373,-500.0,0.00021813,2]
[391162059,1760404239385,-500.0,0.00021813,2]
[391162060,1760404239397,-500.0,0.00021813,2]
[391162061,1760404239409,-500.0,0.00021813,2]
[391162062,1760404239422,-500.0,0.00021813,2]
[391162063,1760404239434,-500.0,0.00021813,2]
[391162064,1760404239447,-500.0,0.00021813,2]
[391162065,1760404239459,-500.0,0.00021813,2]
[391162066,1760404239474,-640.3770728,0.00021813,2]
[391162067,1760404239485,-500.0,0.00021813,2]
[391162068,1760404239496,-500.0,0.00021813,2]
[391162069,1760404239508,-500.0,0.00021813,2]
[391162070,1760404239520,-500.0,0.00021813,2]
[391162071,1760404239530,-500.0,0.00021813,2]
[391162072,1760404239541,-500.0,0.00021813,2]
[391162073,1760404239552,-500.0,0.00021813,2]
[391162074,1760404239563,-1000.0,0.00021814,2]
[391162075,1760404239575,-500.0,0.00021814,2]
[391162076,1760404239587,-305.05724511,0.00021814,2]
[391162077,1760404239598,-481.09927836,0.00021814,2]
[391162078,1760404239609,-370000.0,0.00021815,2]
[391162079,1760404239622,-177.71275941,0.00021817,2]
[391162080,1760404239632,-586.45215179,0.00021817,2]
[391162081,1760404239642,-13701.77921896,0.00021827,2]
[391162082,1760404239652,-345.0,0.00021853,2]
[391162083,1760404239664,-500.0,0.00021873,2]
[391162084,1760404239675,-500.0,0.00021873,2]
[391162085,1760404239686,-500.0,0.00021873,2]
[391162086,1760404239698,-208.00012832,0.00021873,2]
[391162087,1760404239709,-500.0,0.00021873,2]
[391162088,1760404239721,-500.0,0.00021873,2]
[391162089,1760404239732,-500.0,0.00021873,2]
[391162090,1760404239744,-500.0,0.00021873,2]
[391162091,1760404239754,-500.0,0.00021873,2]
[391162092,1760404239766,-500.0,0.00021873,2]
[391162093,1760404239778,-247.19281656,0.00021873,2]
[391162094,1760404239790,-500.25682336,0.00021873,2]
[391162095,1760404239803,-500.13218502,0.00021873,2]
[391162096,1760404239817,-480.11179748,0.00021873,2]
[391162097,1760404239829,-500.0,0.00021873,2]
[391162098,1760404239842,-500.0,0.00021873,2]
[391162099,1760404239853,-500.0,0.00021873,2]
[391162100,1760404239863,-300.0,0.000219,2]
[391162101,1760404239874,-300.0,0.000219,2]
[391162102,1760404239884,-300.0,0.000219,2]
[391162104,1760404239897,-300.0,0.000219,2]
[391162106,1760404239909,-151.0,0.000219,4]
[391162107,1760404239920,-151.0,0.000219,3]
[391162108,1760404239932,-151.0,0.000219,4]
[391162109,1760404239944,-151.0,0.00021904,2]
[391162110,1760404239956,-151.5843608,0.00021904,2]
[391162111,1760404239968,-501.95321013,0.00021917,2]
[391162112,1760404239979,-500.0,0.00021917,2]
[391162113,1760404239989,-500.0,0.00021917,2]
[391162114,1760404240003,-500.0,0.00021917,2]
[391162115,1760404240016,-500.0,0.00021917,2]
[391162116,1760404240027,-501.67021557,0.00021917,2]
[391162117,1760404240040,-500.0,0.00021917,2]
[391162118,1760404240053,-501.24589213,0.00021917,2]
[391162119,1760404240066,-500.0,0.00021917,2]
[391162122,1760404240080,-500.0,0.00021917,2]
[391162124,1760404240093,-500.0,0.00021917,2]
[391162126,1760404240105,-500.0,0.00021917,2]
[391162128,1760404240115,-500.0,0.00021917,2]
[391162130,1760404240125,-500.0,0.00021917,2]
[391162132,1760404240135,-500.0,0.00021917,2]
[391162134,1760404240145,-500.0,0.00021917,2]
[391162136,1760404240155,-388.36,0.00021917,2]
[391162139,1760404240166,-500.0,0.00021917,2]
[391162141,1760404240177,-500.0,0.00021917,2]
[391162143,1760404240187,-500.0,0.00021917,2]
[391162145,1760404240197,-500.0,0.00021917,2]
[391162147,1760404240207,-500.0,0.00021917,2]
[391162149,1760404240217,-500.0,0.00021917,2]
[391162151,1760404240227,-500.0,0.00021917,2]
[391162153,1760404240237,-500.0,0.00021917,2]
[391162155,1760404240247,-502.2149802,0.00021917,2]
[391162157,1760404240258,-503.718029,0.00021917,2]
[391162159,1760404240268,-500.0,0.00021917,2]
[391162162,1760404240279,-500.0,0.00021917,2]
[391162164,1760404240291,-500.0,0.00021917,2]
[391162166,1760404240301,-500.0,0.00021917,2]
[391162168,1760404240312,-500.0,0.00021917,2]
[391162170,1760404240322,-500.0,0.00021917,2]
[391162172,1760404240333,-500.0,0.00021917,2]
[391162174,1760404240343,-500.0,0.00021917,2]
[391162176,1760404240353,-500.0,0.00021917,2]
[391162178,1760404240363,-500.0,0.00021917,2]
[391162180,1760404240374,-500.0,0.00021917,2]
[391162182,1760404240384,-500.0,0.00021917,2]
[391162185,1760404240395,-500.0,0.00021917,2]
[391162187,1760404240405,-500.0,0.00021917,2]
[391162190,1760404240426,-500.0,0.00021917,2]
[391162192,1760404240440,-270.79,0.00021917,2]
[391162195,1760404240452,-502.22080446,0.00021917,2]
[391162197,1760404240464,-500.0,0.00021917,2]
[391162199,1760404240476,-500.0,0.00021917,2]
[391162202,1760404240487,-500.0,0.00021917,2]
[391162204,1760404240499,-500.0,0.00021917,2]
[391162206,1760404240512,-500.0,0.00021917,2]
[391162208,1760404240523,-500.0,0.00021917,2]
[391162211,1760404240535,-500.0,0.00021917,2]
[391162213,1760404240546,-500.0,0.00021917,2]
[391162215,1760404240558,-500.0,0.00021917,2]
[391162217,1760404240570,-500.0,0.00021917,2]
[391162220,1760404240582,-500.0,0.00021917,2]
[391162222,1760404240592,-500.0,0.00021917,2]
[391162224,1760404240604,-500.0,0.00021917,2]
[391162226,1760404240616,-500.0,0.00021917,2]
[391162229,1760404240627,-500.0,0.00021917,2]
[391162231,1760404240639,-554.73335885,0.00021917,2]
[391162233,1760404240650,-500.0,0.00021917,2]
[391162235,1760404240661,-500.0,0.00021917,2]
[391162237,1760404240672,-500.0,0.00021917,2]
[391162240,1760404240683,-501.74210063,0.00021917,2]
[391162242,1760404240694,-500.0,0.00021917,2]
[391162244,1760404240705,-500.0,0.00021917,2]
[391162246,1760404240716,-500.0,0.00021917,2]
[391162248,1760404240727,-506.73635724,0.00021917,2]
[391162250,1760404240738,-500.0,0.00021917,2]
[391162253,1760404240748,-500.0,0.00021917,2]
[391162255,1760404240759,-500.0,0.00021917,2]
[391162257,1760404240770,-500.0,0.00021917,2]
[391162259,1760404240780,-500.0,0.00021917,2]
[391162261,1760404240791,-500.0,0.00021917,2]
[391162263,1760404240801,-500.0,0.00021917,2]
[391162266,1760404240811,-500.0,0.00021917,2]
[391162268,1760404240822,-500.0,0.00021917,2]
[391162270,1760404240832,-440.78,0.00021917,2]
[391162272,1760404240846,-500.0,0.00021917,2]
[391162275,1760404240857,-500.0,0.00021917,2]
[391162277,1760404240870,-500.0,0.00021917,2]
[391162279,1760404240880,-500.0,0.00021917,2]
[391162281,1760404240892,-502.86900114,0.00021917,2]
[391162284,1760404240903,-500.0,0.00021917,2]
[391162286,1760404240916,-190.11,0.00021917,2]
[391162288,1760404240927,-502.18701431,0.00021917,2]
[391162290,1760404240938,-500.0,0.00021917,2]
[391162293,1760404240951,-500.0,0.00021917,2]
[391162295,1760404240962,-500.0,0.00021917,2]
[391162297,1760404240973,-500.0,0.00021917,2]
[391162299,1760404240984,-500.0,0.00021917,2]
[391162301,1760404240995,-500.0,0.00021917,2]
[391162303,1760404241009,-500.0,0.00021917,2]
[391162306,1760404241020,-500.964405,0.00021917,2]
[391162308,1760404241032,-502.45102861,0.00021917,2]
[391162310,1760404241043,-500.0,0.00021917,2]
[391162311,1760404241054,-500.0,0.00021917,2]
[391162312,1760404241065,-500.0,0.00021917,2]
[391162313,1760404241077,-592.76467681,0.00021917,2]
[391162314,1760404241088,-500.0,0.00021917,2]
[391162315,1760404241098,-500.0,0.00021917,2]
[391162316,1760404241108,-500.0,0.00021917,2]
[391162318,1760404241118,-500.0,0.00021917,2]
[391162320,1760404241129,-500.0,0.00021917,2]
[391162322,1760404241140,-500.0,0.00021917,2]
[391162345,1760404241349,-500.0,0.00021917,2]
[391162347,1760404241363,-500.0,0.00021917,2]
[391162349,1760404241372,-580.334447,0.00021917,2]
[391162351,1760404241382,-500.0,0.00021917,2]
[391162353,1760404241391,-500.0,0.00021917,2]
[391162355,1760404241399,-500.0,0.00021917,2]
[391162357,1760404241409,-500.0,0.00021917,2]
[391162360,1760404241418,-500.0,0.00021917,2]
[391162362,1760404241428,-500.0,0.00021917,2]
[391162364,1760404241437,-500.0,0.00021917,2]
[391162366,1760404241446,-502.57703135,0.00021917,2]
[391162367,1760404241456,-501.11781658,0.00021917,2]
[391162369,1760404241465,-500.0,0.00021917,2]
[391162371,1760404241474,-500.0,0.00021917,2]
[391162374,1760404241483,-500.0,0.00021917,2]
[391162375,1760404241493,-500.0,0.00021917,2]
[391162377,1760404241502,-500.0,0.00021917,2]
[391162380,1760404241513,-500.0,0.00021917,2]
[391162381,1760404241522,-500.0,0.00021917,2]
[391162383,1760404241531,-500.0,0.00021917,2]
[391162385,1760404241540,-500.0,0.00021917,2]
[391162387,1760404241549,-500.0,0.00021917,2]
[391162388,1760404241558,-500.0,0.00021917,2]
[391162389,1760404241567,-500.0,0.00021917,2]
[391162390,1760404241576,-500.0,0.00021917,2]
[391162391,1760404241584,-500.0,0.00021917,2]
[391162392,1760404241593,-500.0,0.00021917,2]
[391162393,1760404241602,-1062.57,0.00021917,2]
[391162394,1760404241611,-1062.57,0.00021917,2]
[391162395,1760404241620,-1062.57,0.00021917,2]
[391162396,1760404241630,-1062.57,0.00021917,2]
[391162397,1760404241639,-1062.57,0.00021917,2]
[391162398,1760404241648,-1062.57,0.00021917,2]
[391162399,1760404241657,-1062.57,0.00021917,2]
[391162400,1760404241666,-1062.57,0.00021917,2]
[391162401,1760404241675,-1062.57,0.00021917,2]
[391162402,1760404241683,-1062.57,0.00021917,2]
[391162403,1760404241692,-1062.57,0.00021917,2]
[391162404,1760404241701,-1062.57,0.00021917,2]
[391162405,1760404241711,-1062.57,0.00021917,2]
[391162406,1760404241719,-1062.57,0.00021917,2]
[391162407,1760404241729,-1062.57,0.00021917,2]
[391162408,1760404241738,-1062.57,0.00021917,2]
[391162409,1760404241747,-1062.57,0.00021917,2]
[391162410,1760404241755,-1062.57,0.00021917,2]
[391162411,1760404241764,-1062.57,0.00021917,2]
[391162412,1760404241775,-1062.57,0.00021917,2]
[391162413,1760404241784,-1062.57,0.00021917,2]
[391162414,1760404241792,-1062.57,0.00021917,2]
[391162415,1760404241802,-1062.57,0.00021917,2]
[391162416,1760404241811,-1062.59,0.00021917,2]
[391162417,1760404241819,-500.0,0.00021917,2]
[391162418,1760404241828,-500.0,0.00021917,2]
[391162419,1760404241838,-500.0,0.00021917,2]
[391162420,1760404241846,-500.0,0.00021917,2]
[391162421,1760404241855,-500.0,0.00021917,2]
[391162422,1760404241864,-200.32,0.00021917,2]
[391162423,1760404241873,-501.40388824,0.00021917,2]
[391162424,1760404241882,-500.0,0.00021917,2]
[391162425,1760404241891,-500.0,0.00021917,2]
[391162426,1760404241899,-500.0,0.00021917,2]
[391162427,1760404241908,-200.0,0.00021917,2]
[391162428,1760404241917,-157.23466742,0.00021917,2]
[391162429,1760404241926,-500.0,0.00021917,2]
[391162431,1760404241935,-500.0,0.00021917,2]
[391162433,1760404241944,-500.0,0.00021917,2]
[391162435,1760404241953,-500.0,0.00021917,2]
[391162437,1760404241963,-500.0,0.00021917,2]
[391162439,1760404241971,-493.93768201,0.00021917,2]
[391162441,1760404241981,-636.32,0.00021917,2]
[391162443,1760404241991,-636.32,0.00021917,2]
[391162445,1760404242000,-636.32,0.00021917,2]
[391162447,1760404242014,-636.32,0.00021917,2]
[391162449,1760404242023,-636.32,0.00021917,2]
[391162452,1760404242042,-636.32,0.00021917,2]
[391162454,1760404242053,-636.32,0.00021917,2]
[391162456,1760404242063,-636.32,0.00021917,2]
[391162459,1760404242072,-636.32,0.00021917,2]
[391162461,1760404242083,-636.32,0.00021917,2]
[391162463,1760404242092,-636.32,0.00021917,2]
[391162465,1760404242102,-636.32,0.00021917,2]
[391162467,1760404242112,-636.32,0.00021917,2]
[391162469,1760404242122,-636.32,0.00021917,2]
[391162471,1760404242132,-636.32,0.00021917,2]
[391162473,1760404242141,-636.32,0.00021917,2]
[391162475,1760404242151,-636.32,0.00021917,2]
[391162477,1760404242160,-636.32,0.00021917,2]
[391162479,1760404242170,-636.32,0.00021917,2]
[391162481,1760404242179,-636.32,0.00021917,2]
[391162483,1760404242188,-636.32,0.00021917,2]
[391162485,1760404242198,-636.32,0.00021917,2]
[391162487,1760404242207,-636.32,0.00021917,2]
[391162489,1760404242217,-636.40248224,0.00021917,2]
[391162491,1760404242226,-500.0,0.00021917,2]
[391162493,1760404242235,-500.0,0.00021917,2]
[391162495,1760404242246,-500.0,0.00021917,2]
[391162497,1760404242255,-567.87732806,0.00021917,2]
[391162499,1760404242265,-500.0,0.00021917,2]
[391162501,1760404242275,-500.0,0.00021917,2]
[391162503,1760404242284,-500.0,0.00021917,2]
[391162505,1760404242295,-500.0,0.00021917,2]
[391162507,1760404242304,-509.21650591,0.00021917,2]
[391162510,1760404242314,-500.0,0.00021917,2]
[391162512,1760404242324,-500.0,0.00021917,2]
[391162514,1760404242333,-500.0,0.00021917,2]
[391162516,1760404242342,-500.0,0.00021917,2]
[391162518,1760404242352,-500.0,0.00021917,2]
[391162520,1760404242362,-500.0,0.00021917,2]
[391162522,1760404242372,-500.0,0.00021917,2]
[391162524,1760404242382,-500.0,0.00021917,2]
[391162526,1760404242391,-500.0,0.00021917,2]
[391162528,1760404242401,-500.0,0.00021917,2]
[391162530,1760404242411,-500.0,0.00021917,2]
[391162532,1760404242420,-500.0,0.00021917,2]
[391162534,1760404242430,-597.23,0.00021917,2]
[391162536,1760404242440,-500.0,0.00021917,2]
[391162538,1760404242449,-500.0,0.00021917,2]
[391162540,1760404242459,-500.0,0.00021917,2]
[391162542,1760404242468,-500.0,0.00021917,2]
[391162544,1760404242478,-500.0,0.00021917,2]
[391162546,1760404242487,-502.55098804,0.00021917,2]
[391162548,1760404242496,-500.0,0.00021917,2]
[391162550,1760404242506,-500.0,0.00021917,2]
[391162552,1760404242515,-500.0,0.00021917,2]
[391162554,1760404242525,-500.0,0.00021917,2]
[391162556,1760404242534,-500.0,0.00021917,2]
[391162558,1760404242543,-500.0,0.00021917,2]
[391162559,1760404242552,-500.0,0.00021917,2]
[391162560,1760404242562,-500.0,0.00021917,2]
[391162561,1760404242571,-500.0,0.00021917,2]
[391162562,1760404242580,-479.78,0.00021917,2]
[391162563,1760404242590,-500.0,0.00021917,2]
[391162564,1760404242599,-480.84182228,0.00021917,2]
[391162565,1760404242609,-500.0,0.00021917,2]
[391162566,1760404242618,-500.0,0.00021917,2]
[391162567,1760404242628,-500.0,0.00021917,2]
[391162568,1760404242637,-500.0,0.00021917,2]
[391162569,1760404242647,-500.0,0.00021917,2]
[391162570,1760404242657,-500.0,0.00021917,2]
[391162571,1760404242666,-500.0,0.00021917,2]
[391162572,1760404242675,-500.0,0.00021917,2]
[391162573,1760404242685,-500.0,0.00021917,2]
[391162574,1760404242694,-253.71694282,0.00021917,2]
[391162575,1760404242704,-500.0,0.00021917,2]
[391162576,1760404242714,-500.0,0.00021917,2]
[391162577,1760404242724,-500.0,0.00021917,2]
[391162578,1760404242737,-500.0,0.00021917,2]
[391162579,1760404242747,-500.0,0.00021917,2]
[391162580,1760404242756,-500.0,0.00021917,2]
[391162581,1760404242766,-500.0,0.00021917,2]
[391162583,1760404242776,-500.0,0.00021917,2]
[391162584,1760404242785,-500.0,0.00021917,2]
[391162585,1760404242795,-500.0,0.00021917,2]
[391162586,1760404242805,-500.0,0.00021917,2]
[391162587,1760404242814,-500.0,0.00021917,2]
[391162588,1760404242825,-500.0,0.00021917,2]
[391162589,1760404242834,-500.0,0.00021917,2]
[391162590,1760404242843,-500.0,0.00021917,2]